[Event "74th PGNiG TERMIKA POL-ch Women 2022"]
[Site "Kruszwica"]
[Date "2022.05.09"]
[Round "1.1"]
[White "Zawadzka, Jolanta"]
[Black "Cyfka, Karina"]
[Result "1/2-1/2"]
[ECO "C50"]
[WhiteElo "2409"]
[BlackElo "2404"]
[Annotator "TA"]
[PlyCount "93"]
[EventDate "2022.05.09"]
[EventType "tourn"]
[EventCountry "POL"]
[SourceTitle "playchess.com"]
[Source "ChessBase"]
[SourceQuality "1"]
[TimeControl "40/5400+30:1800+30"]

{[%evp 9,93,16,18,16,20,12,26,15,23,21,22,4,27,23,18,20,28,11,22,0,0,0,0,-9,0,0,0,0,22,-27,-22,-33,-20,-14,0,-2,0,-24,-30,-28,0,0,0,0,91,93,148,143,184,185,195,112,135,136,93,43,551,551,711,684,641,227,227,227,227,63,63,41,41,41,41,41,41,41,41,41,41,0,0,0,0,0,0,0,0,0]} 1. e4 {[%emt 0:00:03]} e5 {[%emt 0:00:04]} 2. Nf3 {[%emt 0:00:04]} Nc6 {[%emt 0:00:05]} 3. Bc4 {[%emt 0:00:05]} Nf6 {[%emt 0:00:07]} 4. d3 {[%emt 0:00:09]} Bc5 {[%emt 0:00:14]} 5. O-O {[%emt 0:00:16]} a6 {[%emt 0:06:37]} 6. a4 {[%emt 0:01:45] C50: Hungarian Defence and Giuoco Pianissimo.} d6 {[%emt 0:06:22]} 7. c3 {[%emt 0:01:08]} Ba7 {[%emt 0:00:32]} 8. Re1 {[%emt 0:00:42] White has an edge.} h6 {[%emt 0:00:24]} 9. Nbd2 {[%emt 0:04:04]} O-O {[%emt 0:01:57]} 10. h3 {[%emt 0:00:17]} Re8 {[%emt 0:11:23]} 11. b4 $1 {[%emt 0:01:03][%cal Bb2b4,Bb4b5][%mdl 32] The main line 11.b4 scores better than 11.Nf1.} Be6 {[%emt 0:02:10]} 12. Bxe6 {[%emt 0:00:26]} Rxe6 {[%emt 0:00:06]} 13. Bb2 {[%emt 0:00:17]} Nh7 {[%emt 0:10:06] [#]} 14. b5 $146 {[%emt 0:16:19]} ({Predecessor:} 14. Nf1 Ne7 15. d4 Ng6 16. Ng3 Nh4 17. a5 Nxf3+ 18. Qxf3 g6 19. Rad1 Qh4 20. c4 Bxd4 21. Bxd4 exd4 22. Rxd4 {½-½ (57) Firouzja,A (2726)-Shankland,S (2683) Prague 2020}) 14... Ne7 {[%emt 0:02:35]} 15. d4 {[%emt 0:00:27]} Ng6 {[%emt 0:05:19]} 16. Nf1 {[%emt 0:07:23]} Ng5 {[%emt 0:07:17]} 17. Nxg5 {[%emt 0:21:07]} Qxg5 {[%emt 0:00:30]} 18. Bc1 {[%emt 0:02:50]} Nf4 {[%emt 0:11:17]} 19. Bxf4 {[%emt 0:00:40]} (19. Ng3 {feels stronger.}) 19... Qxf4 $11 {[%emt 0:00:03]} 20. Ng3 {[%emt 0:02:47]} exd4 {[%emt 0:05:16]} 21. cxd4 {[%emt 0:02:15]} Rae8 {[%emt 0:07:53]} 22. Ra3 {[%emt 0:06:08]} Qf6 {[%emt 0:04:36]} 23. Rd3 {[%emt 0:01:05]} axb5 {[%emt 0:03:16]} 24. axb5 {[%emt 0:00:07]} g6 {[%emt 0:01:44]} 25. Qd2 {[%emt 0:03:10]} Kh7 {[%emt 0:05:19]} 26. Kh2 {[%emt 0:05:21]} R6e7 {[%emt 0:01:41]} (26... Qg5 $11 {remains equal.}) 27. f4 $16 {[%emt 0:00:50] e5 is the strong threat. White is more active.} Bb6 {[%emt 0:03:20]} (27... Qh4 $142) 28. e5 $1 {[%emt 0:02:25]} Qg7 {[%emt 0:02:05]} 29. Ne4 {[%emt 0:06:58][%cal Of4f5] Against f6. Strongly threatening f5!} d5 {[%emt 0:00:04]} 30. Nf6+ {[%emt 0:02:01]} ({White should try} 30. Nc3 $1 $18 {[%cal Rc3d5]}) 30... Qxf6 {[%emt 0:00:04]} 31. exf6 {[%emt 0:00:03]} Rxe1 {[%emt 0:00:05] [#]} 32. h4 {[%emt 0:05:32]} (32. Qa2 $1 $16 {[%cal Ra2d5]}) 32... h5 $2 {[%emt 0:01:50][%mdl 8192]} (32... R1e4 $14) 33. f5 $1 $18 {[%emt 0:06:32]} c6 {[%emt 0:00:03] White must now prevent ...Bc7+.} 34. fxg6+ {[%emt 0:00:03]} fxg6 {[%emt 0:01:05]} 35. Qf4 {[%emt 0:00:09] Inhibits Bc7.} (35. Rg3 {Intending Qg5 and mate.} Rf1 36. Qg5) 35... R1e4 {[%emt 0:01:06] [#]} 36. Qd6 {[%emt 0:00:40]} ({Less strong is} 36. f7 Rf8 37. Qf6 Bd8 $11) 36... Rd8 {[%emt 0:01:02] Against Qd7+} 37. Qg3 {[%emt 0:01:11]} (37. Qa3 $18) 37... Rd7 $1 $14 {[%emt 0:00:30] aiming for ...Bc7.} 38. Qf2 {[%emt 0:00:32]} Rf7 $1 {[%emt 0:00:33]} 39. g3 {[%emt 0:01:25]} Re6 {[%emt 0:00:24]} 40. Rf3 {[%emt 0:00:00]} Bd8 {[%emt 0:00:00]} 41. Kh3 {[%emt 0:05:03]} Rfxf6 {[%emt 0:04:03]} 42. Rxf6 {[%emt 0:02:09]} Bxf6 {[%emt 0:00:55] KQ-KRB} 43. b6 Kg7 {[%emt 0:01:05] The position is equal.} 44. Qf4 {[%emt 0:04:57]} Re4 {[%emt 0:02:33]} 45. Qc7+ {[%emt 0:01:21]} Re7 {[%emt 0:00:05]} 46. Qf4 {[%emt 0:08:26]} Re4 {[%emt 0:01:35]} 47. Qc7+ {[%emt 0:00:35] White really could win this.  Weighted Error Value: White=0.26 (precise) /Black=0.28 (precise)} 1/2-1/2

[Event "74th PGNiG TERMIKA POL-ch Women 2022"]
[Site "Kruszwica"]
[Date "2022.05.09"]
[Round "1.2"]
[White "Rudzinska, Michalina"]
[Black "Kulon, Klaudia"]
[Result "1-0"]
[ECO "B22"]
[WhiteElo "2236"]
[BlackElo "2305"]
[Annotator "TA"]
[PlyCount "99"]
[EventDate "2022.05.09"]
[EventType "tourn"]
[EventCountry "POL"]
[SourceTitle "playchess.com"]
[Source "ChessBase"]
[SourceQuality "1"]
[TimeControl "40/5400+30:1800+30"]

{[%evp 25,99,39,72,33,133,139,133,100,100,100,97,81,106,98,95,100,338,141,150,142,185,174,372,179,180,183,213,220,227,235,235,216,349,182,331,322,456,432,425,346,362,337,316,297,410,410,447,446,440,434,433,430,411,308,693,693,685,670,663,659,664,620,803,779,1190,1050,4801,2675,1858,1090,29992,29993,29994,29995,29997,175]} 1. e4 {[%emt 0:00:03][%cal Be2e4,Be4e5][%mdl 32]} c5 {[%emt 0:00:04]} 2. c3 {[%emt 0:00:10]} Nf6 {[%emt 0:00:35]} 3. e5 {[%emt 0:00:09]} Nd5 {[%emt 0:00:07]} 4. Nf3 {[%emt 0:00:10]} Nc6 {[%emt 0:01:07]} 5. Bc4 {[%emt 0:00:18]} Nb6 {[%emt 0:01:56]} 6. Bb3 {[%emt 0:00:11]} d5 {[%emt 0:08:49]} 7. exd6 {[%emt 0:00:17]} Qxd6 {[%emt 0:00:16]} 8. O-O {[%emt 0:05:33]} Bf5 {[%emt 0:03:36]} 9. d4 {[%emt 0:01:28]} cxd4 {[%emt 0:01:23]} 10. Nxd4 {[%emt 0:02:38]} Nxd4 {[%emt 0:01:25]} 11. cxd4 {[%emt 0:00:07]} e6 {[%emt 0:10:10]} 12. Nc3 {[%emt 0:05:32]} Be7 {[%emt 0:04:28]} 13. Qf3 {[%emt 0:03:29]} Qd7 {[%emt 0:09:39]} 14. d5 {[%emt 0:09:11] B22: Sicilian: 2 c3.} e5 {[%emt 0:07:56]} ({Black should play} 14... exd5 $14 15. a4 Bg4) 15. a4 $16 {[%emt 0:06:56]} a5 {[%emt 0:13:29]} 16. Qe3 {[%emt 0:04:26] [#] White is clearly better.} Nc8 $146 {[%emt 0:00:20]} ({Predecessor:} 16... Ra6 17. Qxe5 O-O 18. Ne4 Re8 19. Re1 Raa8 20. Qd4 Bb4 21. Bh6 f6 22. Nxf6+ gxf6 23. d6+ Be6 24. Rxe6 Rxe6 25. Qxf6 Rae8 26. Bxe6+ Rxe6 27. Qf8# {1-0 (27) Palkovi,J (2410)-Sapi,L (2285) Budapest 1994}) 17. Qxe5 {[%emt 0:00:58]} O-O {[%emt 0:00:05]} 18. Qg3 {[%emt 0:06:43]} Nd6 {[%emt 0:02:46]} 19. Bf4 {[%emt 0:03:40]} Rac8 {[%emt 0:04:22]} 20. Rfe1 {[%emt 0:04:40][%cal Oe1e7] [#] Black must now prevent Rxe7!} Nc4 $2 {[%emt 0:01:06] This move loses the game for Black.} (20... Rfd8 $16 21. Rad1 Bg6) 21. Bxc4 {[%emt 0:00:29]} (21. d6 $18 {has better winning chances.} Bd8 22. Nd5 (22. Bh6 Bg6 $16)) 21... Rxc4 {[%emt 0:00:02]} 22. d6 {[%emt 0:08:59]} Bf6 {[%emt 0:03:21]} 23. Nd5 {[%emt 0:02:05]} Bxb2 {[%emt 0:04:15]} (23... Bd8 24. Ne3 Rb4) 24. Ra2 {[%emt 0:18:41]} (24. Rad1 $142) 24... Bd4 $18 {[%emt 0:01:22]} 25. Be5 $40 {[%emt 0:00:58][%csl Ge5][%cal Rg3g7][%mdl 128] [#] White has strong attack.} Bg6 {[%emt 0:05:47]} 26. Qb3 {[%emt 0:02:55]} Bxe5 {[%emt 0:06:27]} 27. Qxc4 {[%emt 0:02:00]} Bxd6 {[%emt 0:00:39]} 28. Rd2 {[%emt 0:05:27][%cal Od5e7] aiming for Ne7+!} Kh8 {[%emt 0:00:26]} (28... Re8 {keeps fighting.} 29. Rxe8+ (29. Nf6+ gxf6 30. Rxe8+ Qxe8 $16) 29... Qxe8) 29. Red1 {[%emt 0:01:11]} (29. Nf4 $142) 29... Bb8 {[%emt 0:03:30]} (29... Qc6 {was necessary.} 30. Rc1 Rb8) 30. Nf4 {[%emt 0:02:34]} Qe7 {[%emt 0:00:47]} (30... Qc7 $142 31. Qxc7 Bxc7) 31. Rd7 {[%emt 0:00:44]} Qf6 {[%emt 0:00:29]} 32. Nxg6+ {[%emt 0:02:13]} fxg6 {[%emt 0:00:04]} 33. Qd4 {[%emt 0:00:22] Active counter play!} ({Less strong is} 33. Rxb7 Qxf2+ 34. Kh1 h6 $16) 33... Be5 {[%emt 0:00:33]} 34. Qd2 {[%emt 0:00:28]} b6 {[%emt 0:01:17]} 35. Rd8 {[%emt 0:00:19] Threatens to win with Rxf8+.} h5 {[%emt 0:03:07]} 36. Rxf8+ {[%emt 0:00:14]} Qxf8 {[%emt 0:00:01][%mdl 4096] Endgame KQR-KQB} 37. Qg5 {[%emt 0:01:49]} Qf6 {[%emt 0:01:17]} 38. Qxf6 {[%emt 0:00:07]} gxf6 {[%emt 0:00:04] KR-KB} 39. Rd7 {[%emt 0:00:08]} h4 $2 {[%emt 0:00:24]} (39... f5 40. g3 Bc3) 40. h3 {[%emt 0:00:00]} Kg8 {[%emt 0:00:00]} 41. Kf1 {[%emt 0:01:15]} Kf8 {[%emt 0:00:36]} 42. Ke2 {[%emt 0:02:43]} Ke8 {[%emt 0:00:20]} 43. Rh7 {[%emt 0:03:37]} g5 {[%emt 0:00:07]} 44. Kd3 {[%emt 0:00:10]} Kd8 {[%emt 0:01:34]} 45. Kc4 {[%emt 0:00:48]} Kc8 {[%emt 0:00:34]} 46. Kd5 {[%emt 0:00:36] Hoping for Kc6.} Kb8 {[%emt 0:00:34]} 47. Rd7 {[%emt 0:02:00] And now Kc6 would win.} b5 {[%emt 0:01:51]} 48. axb5 {[%emt 0:00:24] White mates.} a4 {[%emt 0:00:04]} 49. Kc6 {[%emt 0:00:32]} a3 {[%emt 0:00:37]} 50. Rd8+ {[%emt 0:00:06] Weighted Error Value: White=0.27 (precise) /Black=0.77} 1-0

[Event "74th PGNiG TERMIKA POL-ch Women 2022"]
[Site "Kruszwica"]
[Date "2022.05.09"]
[Round "1.3"]
[White "Kubicka, Anna"]
[Black "Malicka, Maria"]
[Result "0-1"]
[ECO "C02"]
[WhiteElo "2245"]
[BlackElo "2377"]
[Annotator "TA"]
[PlyCount "104"]
[EventDate "2022.05.09"]
[EventType "tourn"]
[EventCountry "POL"]
[SourceTitle "playchess.com"]
[Source "ChessBase"]
[SourceQuality "1"]
[TimeControl "40/5400+30:1800+30"]

{[%evp 14,104,35,37,62,40,28,37,88,-28,-31,-91,-87,-114,-44,-234,-193,-250,-247,-281,-299,-270,-270,-267,-154,-150,-161,-164,-136,-147,-143,-172,-164,-193,-150,-174,-164,-222,-220,-233,-243,-259,-266,-247,-259,-447,-329,-605,-605,-679,-670,-571,-610,-631,-543,-2008,-1759,-1712,-1147,-2112,-1212,-5535,-29961,-29975,-29976,-29976,-29977,-29977,-29975,-29978,-29974,-29969,0,-29978,-29979,-29979,-29980,-29981,-29982,-29982,-29981,-29979,-29965,-4132,-2635,-29987,-29988,-29988,-29989,-29991,-29992,-29992,-29989]} 1. e4 {[%emt 0:00:06]} e6 {[%emt 0:00:03]} 2. d4 {[%emt 0:00:26]} d5 {[%emt 0:00:05]} 3. e5 {[%emt 0:01:36]} c5 {[%emt 0:00:14]} 4. c3 {[%emt 0:00:05]} Nc6 {[%emt 0:02:36]} 5. Nf3 {[%emt 0:00:34]} Qb6 {[%emt 0:00:30]} 6. a3 {[%emt 0:01:09]} a5 {[%emt 0:02:16]} 7. Bd3 {[%emt 0:01:22]} Bd7 {[%emt 0:09:01]} 8. Bc2 {[%emt 0:00:47]} Qb5 {[%emt 0:23:54] C02: French: Advance Variation.} 9. c4 {[%emt 0:18:06]} (9. a4 $5 {[%cal Ra4b5]} Qb6 10. Na3 $14) 9... dxc4 {[%emt 0:11:29]} (9... Qxc4 $2 10. Bd3 Qxd3 11. Qxd3 $18) 10. Nc3 {[%emt 0:02:17] [#]} Qa6 $146 {[%emt 0:03:56] [#]} (10... Qb6 $14) ({Predecessor:} 10... Qb6 11. d5 exd5 12. Nxd5 Qd8 13. O-O Be6 14. Be4 Nd4 15. Nf4 Bg4 16. Bxb7 Rb8 {0-1 (58) Kiselev,S (2445)-Shaposhnikov,E Roslavl 1989}) 11. d5 {[%emt 0:04:59]} (11. dxc5 $1 $16 Bxc5 12. Ne4) 11... exd5 $11 {[%emt 0:01:28]} 12. Nxd5 {[%emt 0:00:23] [#]} (12. Qxd5 $15 Be6 13. Qe4) 12... O-O-O $1 $17 {[%emt 0:00:15] Strongly threatening ...Be6.} 13. Bd2 {[%emt 0:28:16]} Nd4 {[%emt 0:10:12]} (13... Nge7 $17 14. Ne3 (14. Bg5 $2 Be6 $17) 14... Be6) 14. Ng5 $2 {[%emt 0:13:59]} (14. Nxd4 $15 cxd4 15. Bg5) 14... Nh6 {[%emt 0:10:53] And now ...Bg4 would win.} 15. Ne3 {[%emt 0:10:13] Against Bg4} (15. Nc3 $142) 15... f6 $19 {[%emt 0:03:52][%cal Bf7f6,Bf6f5][%mdl 32]} 16. Ne4 {[%emt 0:02:49]} f5 {[%emt 0:07:34]} (16... fxe5 17. O-O $19) 17. Nc3 {[%emt 0:07:52]} Be6 {[%emt 0:03:51] aiming for ...f4.} 18. f4 {[%emt 0:00:24]} Nb3 {[%emt 0:02:11]} (18... Be7 $19 {Hoping for ...g5.} 19. O-O b5) 19. Bxb3 $17 {[%emt 0:00:17]} cxb3 {[%emt 0:00:02]} 20. Qe2 {[%emt 0:01:11]} Qxe2+ {[%emt 0:02:24]} 21. Nxe2 {[%emt 0:00:27]} b6 {[%emt 0:01:22] Black is more active.} 22. O-O-O {[%emt 0:02:16]} Be7 {[%emt 0:01:55]} 23. Bc3 {[%emt 0:00:53]} Kc7 {[%emt 0:00:46]} 24. Rxd8 {[%emt 0:00:55]} Rxd8 {[%emt 0:00:02]} ({Not} 24... Bxd8 25. h3 $17) 25. Rd1 {[%emt 0:00:30]} (25. Bd2 $142) 25... Rxd1+ $19 {[%emt 0:00:07]} 26. Kxd1 {[%emt 0:00:07]} Ng4 {[%emt 0:01:19]} 27. Nxg4 {[%emt 0:00:23]} fxg4 {[%emt 0:00:02][%mdl 4096] Endgame KBB-KBN} 28. Ng3 {[%emt 0:00:14]} g6 {[%emt 0:00:56] Prevents f5.} 29. Nf1 $2 {[%emt 0:00:13]} (29. Ne4 {keeps fighting.}) 29... Kc6 {[%emt 0:00:56] ...a4 is the strong threat.} 30. Ne3 $2 {[%emt 0:00:38]} (30. a4) 30... a4 {[%emt 0:00:27]} 31. Be1 {[%emt 0:01:53]} b5 {[%emt 0:00:17]} 32. Kc1 {[%emt 0:00:23]} b4 {[%emt 0:00:23]} 33. Bd2 {[%emt 0:00:38]} Kb5 {[%emt 0:00:40]} 34. g3 {[%emt 0:00:18]} c4 {[%emt 0:00:32]} 35. axb4 {[%emt 0:00:38]} Bxb4 {[%emt 0:00:02]} 36. Bxb4 {[%emt 0:00:33]} Kxb4 {[%emt 0:00:01] KB-KN} 37. Nd1 {[%emt 0:00:36] Prevents c3.} a3 {[%emt 0:00:48]} 38. Kb1 {[%emt 0:00:30]} a2+ {[%emt 0:01:08]} 39. Ka1 {[%emt 0:00:04]} Kc5 {[%emt 0:00:20]} 40. Nc3 {[%emt 0:00:00]} Bf5 {[%emt 0:00:00]} 41. Ne2 {[%emt 0:03:29]} Bd7 {[%emt 0:05:59]} 42. Nc3 {[%emt 0:00:11]} Bf5 {[%emt 0:04:37]} 43. Ne2 {[%emt 0:04:48]} g5 {[%emt 0:00:27]} 44. fxg5 {[%emt 0:04:21]} Kd5 {[%emt 0:00:08]} 45. Nc3+ {[%emt 0:06:24]} Kxe5 {[%emt 0:00:29]} 46. Nb5 {[%emt 0:00:38]} Bd3 {[%emt 0:00:50]} 47. Nc3 {[%emt 0:04:31]} Kd4 {[%emt 0:01:19]} 48. Nb5+ {[%emt 0:00:40]} Ke3 {[%emt 0:00:15]} 49. Na3 {[%emt 0:06:27]} c3 {[%emt 0:05:54] Black mates.} 50. bxc3 {[%emt 0:01:51]} Kd2 {[%emt 0:00:04]} 51. Kb2 {[%emt 0:00:54]} a1=Q+ {[%emt 0:00:04]} 52. Kxa1 {[%emt 0:00:03]} Kc1 {[%emt 0:00:05] Weighted Error Value: White=0.79/Black=0.22 (precise)} 0-1

[Event "74th PGNiG TERMIKA POL-ch Women 2022"]
[Site "Kruszwica"]
[Date "2022.05.09"]
[Round "1.4"]
[White "Antolak, Julia"]
[Black "Socko, Monika"]
[Result "0-1"]
[ECO "C11"]
[WhiteElo "2371"]
[BlackElo "2384"]
[Annotator "TA"]
[PlyCount "108"]
[EventDate "2022.05.09"]
[EventType "tourn"]
[EventCountry "POL"]
[SourceTitle "playchess.com"]
[Source "ChessBase"]
[SourceQuality "1"]
[TimeControl "40/5400+30:1800+30"]

{[%evp 16,108,0,-12,-22,-21,0,0,0,0,0,0,0,0,0,0,4,0,0,0,0,0,0,-18,-18,-20,-8,-8,-12,-25,-5,-39,-34,-35,-29,-33,-12,-44,-43,-38,-37,-40,-22,-19,-18,-32,-25,-31,-37,-65,-33,-58,-34,-43,-31,-50,0,-33,-28,-19,-26,-89,-89,-88,-77,-267,-190,-416,-416,-416,-416,-526,-416,-397,-389,-469,-469,-467,-464,-404,-410,-1053,-1043,-1041,-1009,-29976,-29977,-29976,-29976,-29976,-29976,-29981,-29982,-29984,-29980]} 1. e4 {[%emt 0:00:03]} e6 {[%emt 0:00:04]} 2. d4 {[%emt 0:00:06]} d5 {[%emt 0:00:05]} 3. Nc3 {[%emt 0:00:05]} Nf6 {[%emt 0:00:09]} 4. Bg5 {[%emt 0:00:16]} dxe4 {[%emt 0:00:16]} 5. Nxe4 {[%emt 0:00:41]} Be7 {[%emt 0:00:04]} 6. Bxf6 {[%emt 0:00:33]} gxf6 {[%emt 0:00:05]} 7. g3 {[%emt 0:04:08]} f5 {[%emt 0:09:45]} 8. Nc3 {[%emt 0:02:33]} Bf6 {[%emt 0:08:50]} 9. Nge2 {[%emt 0:03:24]} Nc6 {[%emt 0:04:28][%cal Rc6d4] C13: French: Classical System: 4 Bg5 Be7, Alekhine-Chatard Attack.} 10. d5 {[%emt 0:09:23]} Ne7 {[%emt 0:02:24]} 11. dxe6 {[%emt 0:15:16]} Bxe6 {[%emt 0:07:25] The position is equal.} 12. Bg2 {[%emt 0:03:36] [#]} Qxd1+ $146 {[%emt 0:03:26]} ({Predecessor:} 12... c6 13. Qxd8+ Rxd8 14. Rd1 O-O 15. O-O Ng6 16. b3 f4 17. Rxd8 Rxd8 18. Rd1 Rxd1+ 19. Nxd1 {½-½ (58) Tarasov,O (2169)-Smirnov,A (2461) Moscow 2020}) 13. Rxd1 {[%emt 0:00:56]} c6 {[%emt 0:00:03] Inhibits Nb5.} 14. O-O {[%emt 0:04:18]} Rd8 {[%emt 0:01:52]} 15. b3 {[%emt 0:08:33]} Ng6 {[%emt 0:02:07]} 16. Na4 {[%emt 0:03:09]} (16. f4 {feels hotter.} Ke7 17. Kf2 Rd6 18. Rxd6 Kxd6 19. Rd1+) 16... O-O {[%emt 0:02:34]} 17. Nc5 {[%emt 0:05:23]} Bc8 {[%emt 0:00:15]} 18. Nd3 {[%emt 0:04:34]} Rd6 {[%emt 0:01:36]} 19. Nef4 {[%emt 0:03:48]} Rfd8 {[%emt 0:04:06]} 20. Bf3 {[%emt 0:01:14]} Kf8 {[%emt 0:05:21]} 21. Kg2 {[%emt 0:03:01]} b6 {[%emt 0:04:19]} 22. Kg1 {[%emt 0:06:06]} a5 {[%emt 0:10:13]} 23. Nh5 {[%emt 0:05:38]} Bc3 {[%emt 0:02:07]} 24. Ndf4 {[%emt 0:00:53]} Bd4 {[%emt 0:06:57]} 25. Be2 {[%emt 0:04:47]} b5 {[%emt 0:02:51]} 26. Kg2 {[%emt 0:01:54]} Bb7 {[%emt 0:02:54]} 27. f3 {[%emt 0:01:22]} Bc8 {[%emt 0:05:29]} (27... b4 {seems wilder.} 28. Rfe1 Bc8 29. Bc4 Bc3) 28. Rd2 {[%emt 0:02:21]} Bc3 {[%emt 0:01:19]} 29. Rxd6 {[%emt 0:00:06]} Rxd6 {[%emt 0:00:01]} 30. Rd1 {[%emt 0:00:08]} Ke7 {[%emt 0:00:42]} 31. Nd3 {[%emt 0:02:32]} Bd4 {[%emt 0:02:58]} 32. f4 {[%emt 0:02:10]} Bc3 {[%emt 0:04:41] Black is more active.} 33. Kf1 {[%emt 0:01:28]} Be6 {[%emt 0:02:09]} 34. h3 {[%emt 0:01:28]} Bd4 {[%emt 0:01:10]} 35. Ne1 {[%emt 0:00:37]} a4 {[%emt 0:02:05]} (35... Bh8 $15) 36. g4 {[%emt 0:01:05]} fxg4 {[%emt 0:01:10]} 37. hxg4 {[%emt 0:00:08]} f5 {[%emt 0:00:10][%cal Bf7f5,Bf5g4][%mdl 32]} 38. Nf3 {[%emt 0:01:14]} (38. g5 $11) 38... Be3 $17 {[%emt 0:01:09]} 39. Rxd6 {[%emt 0:00:24]} Kxd6 {[%emt 0:00:01]} 40. Nf6 $2 {[%emt 0:00:00] [#] This costs White the game.} (40. Ng5 $17 {was worth a try.}) 40... fxg4 {[%emt 0:00:00]} 41. Ne4+ $2 {[%emt 0:08:14]} (41. Ng5) 41... Ke7 $19 {[%emt 0:06:42]} ({Don't blunder} 41... Kd5 $2 42. Nf6+ Kd6 43. Ng5 $19) 42. Nfg5 {[%emt 0:01:58]} Bf5 {[%emt 0:03:22]} 43. bxa4 {[%emt 0:08:12]} bxa4 {[%emt 0:00:04]} 44. Ng3 {[%emt 0:03:06]} Bxc2 {[%emt 0:01:02] This bishop pair is nice.} 45. Bxg4 {[%emt 0:01:56]} Bxf4 {[%emt 0:01:36]} 46. N5e4 {[%emt 0:00:43]} Ne5 {[%emt 0:02:35] Prevents Bf3.} 47. Bc8 {[%emt 0:02:05]} a3 {[%emt 0:02:58] ...Bxg3 is the strong threat.} 48. Nf5+ {[%emt 0:01:49]} (48. Bf5 $142 Bd3+ 49. Kg2) 48... Kd8 {[%emt 0:00:52]} 49. Ned6 {[%emt 0:00:30] [#]} Nc4 $1 {[%emt 0:02:03][%mdl 512]} 50. Nxc4 {[%emt 0:04:22]} (50. Be6 Nxd6) 50... Bd3+ {[%emt 0:00:04] Black mates.} 51. Kf2 {[%emt 0:00:22]} Bxc4 {[%emt 0:00:03]} 52. Bb7 {[%emt 0:00:38]} Kc7 {[%emt 0:01:09]} 53. Ba8 {[%emt 0:00:07]} Bxa2 {[%emt 0:01:16]} 54. Nd4 {[%emt 0:01:43]} Bc4 {[%emt 0:01:30] Weighted Error Value: White=0.45/Black=0.09 (flawless)} 0-1

[Event "74th PGNiG TERMIKA POL-ch Women 2022"]
[Site "Kruszwica"]
[Date "2022.05.09"]
[Round "1.5"]
[White "Majdan, Joanna"]
[Black "Kiolbasa, Oliwia"]
[Result "0-1"]
[ECO "C82"]
[WhiteElo "2325"]
[BlackElo "2375"]
[Annotator "TA"]
[PlyCount "46"]
[EventDate "2022.05.09"]
[EventType "tourn"]
[EventCountry "POL"]
[SourceTitle "playchess.com"]
[Source "ChessBase"]
[SourceQuality "1"]
[TimeControl "40/5400+30:1800+30"]

{[%evp 32,46,7,-8,0,-163,-161,-464,-446,-1158,-1166,-1154,-1150,-5373,-5106,-6287,-5499]} 1. e4 {[%emt 0:00:03]} e5 {[%emt 0:00:07]} 2. Nf3 {[%emt 0:00:05]} Nc6 {[%emt 0:00:08]} 3. Bb5 {[%emt 0:00:06][%cal Bf1b5,Bb5a4,Ba4b3][%mdl 32]} a6 {[%emt 0:00:09]} 4. Ba4 {[%emt 0:00:07]} Nf6 {[%emt 0:00:18]} 5. O-O {[%emt 0:00:08]} Nxe4 {[%emt 0:01:19]} 6. d4 {[%emt 0:00:41]} b5 {[%emt 0:00:44]} 7. Bb3 {[%emt 0:00:05]} d5 {[%emt 0:00:10]} 8. dxe5 {[%emt 0:00:48]} Be6 {[%emt 0:00:18]} 9. c3 {[%emt 0:01:41]} Bc5 {[%emt 0:03:08]} 10. Nbd2 {[%emt 0:03:41]} O-O {[%emt 0:01:32]} 11. Bc2 {[%emt 0:02:02]} Nxf2 {[%emt 0:01:00]} 12. Rxf2 {[%emt 0:00:15]} f6 {[%emt 0:00:26]} 13. exf6 {[%emt 0:02:15]} Bxf2+ {[%emt 0:03:51]} 14. Kxf2 {[%emt 0:00:05]} Qxf6 {[%emt 0:00:14]} 15. Nf1 {[%emt 0:20:49]} Ne5 {[%emt 0:06:18]} 16. Be3 {[%emt 0:06:44]} Rae8 {[%emt 0:26:25][%cal Ba8e8,Be8e5,Be5g5,Bg5g2][%mdl 32]} 17. Bd4 {[%emt 0:09:18]} Bg4 {[%emt 0:02:52] ...Qh4+ is the strong threat. Dancing on a razor blade. C82: Open Ruy Lopez: 9 c3 without 9...Be7.} 18. Bxe5 $2 {[%emt 0:00:29]} (18. N1d2 $1 $11) 18... Rxe5 $19 {[%emt 0:08:12]} 19. Ng3 $2 {[%emt 0:11:27] [#]} (19. Kg1) 19... Qh6 $1 {[%emt 0:06:56] Black is clearly winning.} 20. Nf1 {[%emt 0:08:52] Against Qe3+} (20. Bxh7+ $142 Qxh7 21. Kg1 Bxf3 22. gxf3) 20... Bxf3 {[%emt 0:10:21]} 21. gxf3 {[%emt 0:00:06]} Rg5 {[%emt 0:00:35] [#]} 22. Bd3 $146 {[%emt 0:13:15]} ({Predecessor:} 22. Qd4 Qh3 23. Qd3 Qg2+ 24. Ke1 Rxf3 {0-1 (24) Drygalski,W-Gysi,A Italy 1995}) 22... Qh4+ {[%emt 0:04:31]} 23. Ke3 {[%emt 0:00:35]} Rg2 {[%emt 0:02:39] Black took control after the opening.  Weighted Error Value: White=2.93/Black=0.02 (flawless)} 0-1